lending/lending_fUSD_20240809
["ID","MTS","AMOUNT","RATE_DAILY","PERIOD"]
[334531456,1723174282747,-2291.76,0.00024395,5]
[334531457,1723174282756,-500.0,0.00024395,5]
[334531458,1723174282766,-500.0,0.00024395,5]
[334531459,1723174282775,-1883.58,0.00024395,5]
[334531460,1723174282786,-856.94,0.00024395,5]
[334531461,1723174282796,-2634.31,0.00024395,5]
[334531462,1723174282806,-2000.36,0.00024395,5]
[334531463,1723174282815,-743.53,0.00024395,5]
[334531464,1723174282825,-500.0,0.00024395,5]
[334531465,1723174282834,-1247.5,0.00024395,5]
[334531466,1723174282844,-173.72523512,0.00024399,2]
[334531467,1723174282853,-1615.67307861,0.00024399,2]
[334531468,1723174282863,-1126.0,0.00024399,2]
[334531469,1723174282874,-2233.21503504,0.000244,2]
[334531470,1723174282884,-495.40063286,0.000244,2]
[334531471,1723174282894,-242.2847098,0.000244,2]
[334531472,1723174282904,-381.71721631,0.000244,2]
[334531473,1723174282914,-1000.0,0.000244,2]
[334531474,1723174282924,-150.0,0.00024443,2]
[334531475,1723174282933,-500.0,0.00024483,5]
[334531476,1723174282942,-500.0,0.00024483,5]
[334531477,1723174282953,-1613.44,0.00024483,5]
[334531478,1723174282962,-741.44,0.00024483,5]
[334531479,1723174282972,-880.06,0.00024483,5]
[334531480,1723174282983,-500.0,0.00024483,5]
[334531481,1723174282993,-1307.04,0.00024483,5]
[334531482,1723174283002,-1023.32,0.00024483,5]
[334531483,1723174283012,-511.08,0.00024483,5]
[334531484,1723174283021,-500.0,0.00024483,5]
[334531485,1723174283031,-500.0,0.00024483,5]
[334531486,1723174283041,-500.0,0.00024483,5]
[334531487,1723174283051,-513.81,0.00024483,5]
[334531488,1723174283061,-2623.84,0.00024483,5]
[334531489,1723174283072,-500.0,0.00024483,5]
[334531490,1723174283083,-2794.96,0.00024483,5]
[334531491,1723174283093,-695.34,0.00024483,5]
[334531492,1723174283103,-2070.87,0.00024483,5]
[334531493,1723174283113,-1092.05,0.00024483,5]
[334531494,1723174283123,-797.93,0.00024483,5]
[334531495,1723174283134,-2138.78,0.00024483,5]
[334531496,1723174283144,-152.04426467,0.00024483,5]
[334531497,1723174283155,-2111.93,0.00024483,5]
[334531498,1723174283165,-2291.76,0.00024483,5]
[334531499,1723174283176,-298.82064601,0.00024483,5]
[334531500,1723174283186,-500.0,0.00024483,5]
[334531501,1723174283198,-1883.58,0.00024483,5]
[334531502,1723174283208,-856.94,0.00024483,5]
[334531503,1723174283218,-2634.31,0.00024483,5]
[334531504,1723174283228,-2000.36,0.00024483,5]
[334531505,1723174283239,-743.53,0.00024483,5]
[334531506,1723174283250,-500.0,0.00024483,5]
[334531507,1723174283260,-1247.5,0.00024483,5]
[334531508,1723174283270,-185.0,0.00024487,2]
[334531509,1723174283281,-500.0,0.00024492,5]
[334531510,1723174283291,-500.0,0.00024492,5]
[334531511,1723174283301,-500.0,0.00024492,5]
[334531512,1723174283311,-500.0,0.00024492,5]
[334531513,1723174283322,-1613.44,0.00024492,5]
[334531514,1723174283332,-1613.44,0.00024492,5]
[334531515,1723174283342,-741.44,0.00024492,5]
[334531516,1723174283352,-741.44,0.00024492,5]
[334531517,1723174283363,-880.06,0.00024492,5]
[334531518,1723174283373,-880.06,0.00024492,5]
[334531519,1723174283386,-500.0,0.00024492,5]
[334531520,1723174283396,-500.0,0.00024492,5]
[334531521,1723174283405,-1307.04,0.00024492,5]
[334531522,1723174283415,-1307.04,0.00024492,5]
[334531523,1723174283424,-1023.32,0.00024492,5]
[334531524,1723174283435,-1023.32,0.00024492,5]
[334531525,1723174283444,-511.08,0.00024492,5]
[334531526,1723174283454,-511.08,0.00024492,5]
[334531527,1723174283465,-500.0,0.00024492,5]
[334531528,1723174283475,-571.2614227,0.00024492,5]
[334531529,1723174283486,-500.0,0.00024492,5]
[334531530,1723174283499,-500.0,0.00024492,5]
[334531531,1723174283509,-500.0,0.00024492,5]
[334531532,1723174283518,-500.0,0.00024492,5]
[334531533,1723174283528,-513.81,0.00024492,5]
[334531534,1723174283538,-513.81,0.00024492,5]
[334531535,1723174283548,-2623.84,0.00024492,5]
[334531536,1723174283557,-2623.84,0.00024492,5]
[334531537,1723174283566,-432.49035,0.00024492,7]
[334531538,1723174283578,-432.49035,0.00024492,7]
[334531539,1723174283588,-500.0,0.00024492,5]
[334531540,1723174283598,-500.0,0.00024492,5]
[334531541,1723174283607,-2794.96,0.00024492,5]
[334531542,1723174283617,-2794.96,0.00024492,5]
[334531543,1723174283626,-695.34,0.00024492,5]
[334531544,1723174283635,-695.34,0.00024492,5]
[334531545,1723174283645,-2070.87,0.00024492,5]
[334531546,1723174283654,-2070.87,0.00024492,5]
[334531547,1723174283663,-1092.05,0.00024492,5]
[334531548,1723174283673,-1092.05,0.00024492,5]
[334531549,1723174283682,-797.93,0.00024492,5]
[334531550,1723174283692,-797.93,0.00024492,5]
[334531551,1723174283701,-2138.78,0.00024492,5]
[334531552,1723174283711,-2138.78,0.00024492,5]
[334531553,1723174283719,-2111.93,0.00024492,5]
[334531554,1723174283729,-2111.93,0.00024492,5]
[334531555,1723174283739,-2291.76,0.00024492,5]
[334531556,1723174283748,-2291.76,0.00024492,5]
[334531557,1723174283757,-500.0,0.00024492,5]
[334531558,1723174283766,-500.0,0.00024492,5]
[334531559,1723174283776,-1883.58,0.00024492,5]
[334531560,1723174283785,-1883.58,0.00024492,5]
[334531561,1723174283794,-856.94,0.00024492,5]
[334531562,1723174283804,-856.94,0.00024492,5]
[334531563,1723174283813,-2634.31,0.00024492,5]
[334531564,1723174283822,-2634.31,0.00024492,5]
[334531565,1723174283832,-2000.36,0.00024492,5]
[334531566,1723174283841,-2000.36,0.00024492,5]
[334531567,1723174283850,-743.53,0.00024492,5]
[334531568,1723174283859,-743.53,0.00024492,5]
[334531569,1723174283869,-500.0,0.00024492,5]
[334531570,1723174283879,-500.0,0.00024492,5]
[334531571,1723174283888,-1247.5,0.00024492,5]
[334531572,1723174283897,-1247.5,0.00024492,5]
[334531573,1723174283907,-731.5,0.00024493,5]
[334531574,1723174283917,-731.5,0.00024493,5]
[334531575,1723174283926,-731.5,0.00024493,5]
[334531576,1723174283935,-731.5,0.00024493,5]
[334531577,1723174283944,-731.52950474,0.00024493,5]
[334531578,1723174283954,-500.0,0.00024494,5]
[334531579,1723174283964,-500.0,0.00024494,5]
[334531580,1723174283973,-311.96675222,0.00024494,5]
[334531581,1723174283982,-500.0,0.00024494,5]
[334531582,1723174283992,-500.0,0.00024494,5]
[334531583,1723174284001,-500.0,0.00024494,5]
[334531584,1723174284011,-1613.44,0.00024494,5]
[334531585,1723174284022,-1613.44,0.00024494,5]
[334531586,1723174284031,-1613.44,0.00024494,5]
[334531587,1723174284041,-741.44,0.00024494,5]
[334531588,1723174284051,-741.44,0.00024494,5]
[334531589,1723174284061,-741.44,0.00024494,5]
[334531590,1723174284071,-880.06,0.00024494,5]
[334531591,1723174284081,-880.06,0.00024494,5]
[334531592,1723174284090,-880.06,0.00024494,5]
[334531593,1723174284101,-500.0,0.00024494,5]
[334531594,1723174284111,-500.0,0.00024494,5]
[334531595,1723174284121,-500.0,0.00024494,5]
[334531596,1723174284131,-1307.04,0.00024494,5]
[334531597,1723174284142,-1307.04,0.00024494,5]
[334531598,1723174284152,-1307.04,0.00024494,5]
[334531599,1723174284162,-1023.32,0.00024494,5]
[334531600,1723174284172,-1023.32,0.00024494,5]
[334531601,1723174284182,-1023.32,0.00024494,5]
[334531602,1723174284192,-511.08,0.00024494,5]
[334531603,1723174284201,-511.08,0.00024494,5]
[334531604,1723174284211,-511.08,0.00024494,5]
[334531605,1723174284220,-500.0,0.00024494,5]
[334531606,1723174284230,-500.0,0.00024494,5]
[334531607,1723174284240,-500.0,0.00024494,5]
[334531608,1723174284250,-500.0,0.00024494,5]
[334531609,1723174284260,-500.0,0.00024494,5]
[334531610,1723174284269,-500.0,0.00024494,5]
[334531611,1723174284279,-513.81,0.00024494,5]
[334531612,1723174284289,-513.81,0.00024494,5]
[334531613,1723174284300,-513.81,0.00024494,5]
[334531614,1723174284309,-2623.84,0.00024494,5]
[334531615,1723174284319,-2623.84,0.00024494,5]
[334531616,1723174284328,-2623.84,0.00024494,5]
[334531617,1723174284338,-500.0,0.00024494,5]
[334531618,1723174284347,-500.0,0.00024494,5]
[334531619,1723174284359,-500.0,0.00024494,5]
[334531620,1723174284368,-2794.96,0.00024494,5]
[334531621,1723174284378,-2794.96,0.00024494,5]
[334531622,1723174284388,-2794.96,0.00024494,5]
[334531623,1723174284397,-695.34,0.00024494,5]
[334531624,1723174284407,-695.34,0.00024494,5]
[334531625,1723174284417,-695.34,0.00024494,5]
[334531626,1723174284426,-2070.87,0.00024494,5]
[334531627,1723174284436,-2070.87,0.00024494,5]
[334531628,1723174284446,-2070.87,0.00024494,5]
[334531629,1723174284455,-1092.05,0.00024494,5]
[334531630,1723174284465,-1092.05,0.00024494,5]
[334531631,1723174284474,-1092.05,0.00024494,5]
[334531632,1723174284487,-797.93,0.00024494,5]
[334531633,1723174284498,-797.93,0.00024494,5]
[334531634,1723174284508,-797.93,0.00024494,5]
[334531635,1723174284517,-2138.78,0.00024494,5]
[334531636,1723174284527,-2138.78,0.00024494,5]
[334531637,1723174284537,-2138.78,0.00024494,5]
[334531638,1723174284547,-2111.93,0.00024494,5]
[334531639,1723174284556,-2111.93,0.00024494,5]
[334531640,1723174284566,-2111.93,0.00024494,5]
[334531641,1723174284578,-2291.76,0.00024494,5]
[334531642,1723174284587,-2291.76,0.00024494,5]
[334531643,1723174284597,-2291.76,0.00024494,5]
[334531644,1723174284607,-500.0,0.00024494,5]
[334531645,1723174284617,-500.0,0.00024494,5]
[334531646,1723174284626,-221.08391828,0.00024494,5]
[334531647,1723174284636,-1883.58,0.00024494,5]
[334531648,1723174284686,-1883.58,0.00024494,5]
[334531649,1723174284695,-1883.58,0.00024494,5]
[334531650,1723174284705,-856.94,0.00024494,5]
[334531651,1723174284714,-856.94,0.00024494,5]
[334531652,1723174284723,-856.94,0.00024494,5]
[334531653,1723174284733,-2634.31,0.00024494,5]
[334531654,1723174284743,-2634.31,0.00024494,5]
[334531655,1723174284753,-2634.31,0.00024494,5]
[334531656,1723174284763,-2000.36,0.00024494,5]
[334531657,1723174284772,-2000.36,0.00024494,5]
[334531658,1723174284782,-2000.36,0.00024494,5]
[334531659,1723174284792,-743.53,0.00024494,5]
[334531660,1723174284802,-743.53,0.00024494,5]
[334531661,1723174284811,-743.53,0.00024494,5]
[334531662,1723174284821,-500.0,0.00024494,5]
[334531663,1723174284831,-500.0,0.00024494,5]
[334531664,1723174284841,-500.0,0.00024494,5]
[334531665,1723174284851,-1247.5,0.00024494,5]
[334531666,1723174284861,-1247.5,0.00024494,5]
[334531667,1723174284871,-1247.5,0.00024494,5]
[334531668,1723174284880,-1807.21,0.00024496,5]
[334531669,1723174284890,-500.0,0.00024496,5]
[334531670,1723174284900,-860.19,0.00024496,5]
[334531671,1723174284911,-500.0,0.00024496,5]
[334531672,1723174284921,-734.23,0.00024496,5]
[334531673,1723174284931,-500.0,0.00024496,5]
[334531674,1723174284942,-591.16,0.00024496,5]
[334531675,1723174284951,-850.23,0.00024496,5]
[334531676,1723174284961,-1017.49,0.00024496,5]
[334531677,1723174284971,-1570.95,0.00024496,5]
[334531678,1723174284982,-500.0,0.00024496,5]
[334531679,1723174284991,-546.65,0.00024496,5]
[334531680,1723174285001,-2224.33,0.00024496,5]
[334531681,1723174285010,-500.0,0.00024496,5]
[334531682,1723174285020,-909.88,0.00024496,5]
[334531683,1723174285029,-1097.57,0.00024496,5]
[334531684,1723174285039,-2336.6,0.00024496,5]
[334531685,1723174285049,-500.0,0.00024496,5]
[334531686,1723174285058,-705.39,0.00024496,5]
[334531687,1723174285068,-968.06,0.00024496,5]
[334531688,1723174285077,-500.0,0.00024496,5]
[334531689,1723174285088,-1416.26,0.00024496,5]
[334531690,1723174285098,-1480.02,0.00024496,5]
[334531691,1723174285107,-1480.14,0.00024496,5]
[334531692,1723174285117,-500.0,0.00024496,5]
[334531693,1723174285127,-500.0,0.00024496,5]
[334531694,1723174285137,-2790.8,0.00024496,5]
[334531695,1723174285147,-500.0,0.00024496,5]
[334531696,1723174285157,-500.0,0.00024496,5]
[334531697,1723174285166,-500.0,0.00024496,5]
[334531698,1723174285176,-936.55,0.00024496,5]
[334531699,1723174285186,-501.49,0.00024496,5]
[334531700,1723174285195,-500.0,0.00024496,5]
[334531701,1723174285204,-529.93,0.00024496,5]
[334531702,1723174285214,-500.0,0.00024496,5]
[334531703,1723174285223,-500.0,0.00024496,5]
[334531704,1723174285233,-784.6,0.00024496,5]
[334531705,1723174285243,-1378.83,0.00024496,5]
[334531706,1723174285252,-657.8,0.00024496,5]
[334531707,1723174285262,-615.45,0.00024496,5]
[334531708,1723174285271,-500.0,0.00024496,5]
[334531709,1723174285280,-500.0,0.00024496,5]
[334531710,1723174285289,-1143.35,0.00024496,5]
[334531711,1723174285298,-500.0,0.00024496,5]
[334531712,1723174285308,-500.0,0.00024496,5]
[334531713,1723174285318,-500.0,0.00024496,5]
[334531714,1723174285327,-1105.65,0.00024496,5]
[334531715,1723174285337,-660.62,0.00024496,5]
[334531716,1723174285346,-500.0,0.00024496,5]
[334531717,1723174285355,-711.99,0.00024496,5]
[334531718,1723174285365,-500.0,0.00024496,5]
[334531719,1723174285374,-500.0,0.00024496,5]
[334531720,1723174285384,-2174.51,0.00024496,5]
[334531721,1723174285393,-1755.36,0.00024496,5]
[334531722,1723174285403,-500.0,0.00024496,5]
[334531723,1723174285413,-994.49,0.00024496,5]
[334531724,1723174285423,-500.0,0.00024496,5]
[334531725,1723174285433,-500.0,0.00024496,5]
[334531726,1723174285443,-1499.89,0.00024496,5]
[334531727,1723174285453,-500.0,0.00024496,5]
[334531728,1723174285463,-500.0,0.00024496,5]
[334531729,1723174285473,-565.38,0.00024496,5]
[334531730,1723174285483,-1330.55,0.00024496,5]
[334531731,1723174285496,-500.0,0.00024496,5]
[334531732,1723174285507,-500.0,0.00024496,5]
[334531733,1723174285516,-564.46,0.00024496,5]
[334531734,1723174285526,-963.27,0.00024496,5]
[334531735,1723174285537,-500.0,0.00024496,5]
[334531736,1723174285546,-550.36,0.00024496,5]
[334531737,1723174285557,-1035.59,0.00024496,5]
[334531738,1723174285566,-500.0,0.00024496,5]
[334531739,1723174285581,-500.0,0.00024496,5]
[334531740,1723174285591,-606.69,0.00024496,5]
[334531741,1723174285601,-500.0,0.00024496,5]
[334531742,1723174285610,-833.33,0.00024496,5]
[334531743,1723174285620,-500.0,0.00024496,5]
[334531744,1723174285630,-500.0,0.00024496,5]
[334531745,1723174285640,-857.68,0.00024496,5]
[334531746,1723174285650,-510.71,0.00024496,5]
[334531747,1723174285660,-753.83,0.00024496,5]
[334531748,1723174285669,-521.67085026,0.00024496,5]
[334531749,1723174285679,-1785.13,0.00024496,5]
[334531750,1723174285689,-787.48,0.00024496,5]
[334531751,1723174285698,-500.0,0.00024496,5]
[334531752,1723174285707,-500.0,0.00024496,5]
[334531753,1723174285716,-500.0,0.00024496,5]
[334531754,1723174285726,-500.0,0.00024496,5]
[334531755,1723174285736,-500.0,0.00024496,5]
[334531756,1723174285745,-508.9,0.00024496,5]
[334531757,1723174285755,-500.0,0.00024496,5]
[334531758,1723174285766,-500.0,0.00024496,5]
[334531759,1723174285777,-905.68,0.00024496,5]
[334531760,1723174285786,-500.0,0.00024496,5]
[334531761,1723174285796,-519.94638183,0.00024496,5]
[334531762,1723174285807,-500.0,0.00024496,5]
[334531763,1723174285817,-585.42,0.00024496,5]
[334531764,1723174285827,-2100.11,0.00024496,5]
[334531765,1723174285837,-500.0,0.00024496,5]
[334531766,1723174285846,-578.07,0.00024496,5]
[334531767,1723174285857,-500.0,0.00024496,5]
[334531768,1723174285867,-500.0,0.00024496,5]
[334531769,1723174285878,-1393.39,0.00024496,5]
[334531770,1723174285887,-500.0,0.00024496,5]
[334531771,1723174285897,-1966.42,0.00024496,5]
[334531772,1723174285906,-500.0,0.00024496,5]
[334531773,1723174285915,-500.0,0.00024496,5]
[334531774,1723174285926,-500.0,0.00024496,5]
[334531775,1723174285936,-1267.68,0.00024496,5]
[334531776,1723174285946,-685.54,0.00024496,5]
[334531777,1723174285956,-1471.19,0.00024496,5]
[334531778,1723174285965,-761.21,0.00024496,5]
[334531779,1723174285975,-664.06,0.00024496,5]
[334531780,1723174285986,-500.0,0.00024496,5]
[334531781,1723174285996,-2367.69,0.00024496,5]
[334531782,1723174286006,-500.0,0.00024496,5]
[334531783,1723174286016,-2953.9477494,0.00024498,2]
[334531784,1723174286025,-1807.21,0.00024498,5]
[334531785,1723174286035,-500.0,0.00024498,5]
[334531786,1723174286044,-860.19,0.00024498,5]
[334531787,1723174286054,-500.0,0.00024498,5]
[334531788,1723174286063,-734.23,0.00024498,5]
[334531789,1723174286073,-500.0,0.00024498,5]
[334531790,1723174286083,-591.16,0.00024498,5]
[334531791,1723174286092,-850.23,0.00024498,5]
[334531792,1723174286102,-1017.49,0.00024498,5]
[334531793,1723174286111,-1570.95,0.00024498,5]
[334531794,1723174286121,-500.0,0.00024498,5]
[334531795,1723174286130,-546.65,0.00024498,5]
[334531796,1723174286139,-2224.33,0.00024498,5]
[334531797,1723174286148,-909.88,0.00024498,5]
[334531798,1723174286158,-500.0,0.00024498,5]
[334531799,1723174286168,-1097.57,0.00024498,5]
[334531800,1723174286177,-150.01,0.00024498,2]
[334531801,1723174286187,-2336.6,0.00024498,5]
[334531802,1723174286196,-500.0,0.00024498,5]
[334531803,1723174286206,-705.39,0.00024498,5]
[334531804,1723174286216,-968.06,0.00024498,5]
[334531805,1723174286225,-500.0,0.00024498,5]
[334531806,1723174286237,-1416.26,0.00024498,5]
[334531807,1723174286246,-1480.02,0.00024498,5]
[334531808,1723174286255,-1480.14,0.00024498,5]
[334531809,1723174286265,-500.0,0.00024498,5]
[334531810,1723174286274,-500.0,0.00024498,5]
[334531811,1723174286283,-2790.8,0.00024498,5]
[334531812,1723174286292,-500.0,0.00024498,5]
[334531813,1723174286301,-504.98421748,0.00024498,5]
[334531814,1723174286311,-333.25998602,0.00024498,5]
[334531815,1723174286321,-936.55,0.00024498,5]
[334531816,1723174286330,-501.49,0.00024498,5]
[334531817,1723174286339,-166.09549554,0.00024498,5]
[334531818,1723174286348,-529.93,0.00024498,5]
[334531819,1723174286358,-211.41997582,0.00024498,5]
[334531820,1723174286367,-500.0,0.00024498,5]
[334531821,1723174286376,-784.6,0.00024498,5]
[334531822,1723174286386,-1378.83,0.00024498,5]
[334531823,1723174286395,-657.8,0.00024498,5]
[334531824,1723174286405,-615.45,0.00024498,5]
[334531825,1723174286415,-500.0,0.00024498,5]
[334531826,1723174286425,-500.0,0.00024498,5]
[334531827,1723174286435,-1143.35,0.00024498,5]
[334531828,1723174286444,-500.0,0.00024498,5]
[334531829,1723174286454,-500.0,0.00024498,5]
[334531830,1723174286466,-500.0,0.00024498,5]
[334531831,1723174286476,-1105.65,0.00024498,5]
[334531832,1723174286487,-660.62,0.00024498,5]
[334531833,1723174286497,-636.4,0.00024498,5]
[334531834,1723174286508,-711.99,0.00024498,5]
[334531835,1723174286518,-500.0,0.00024498,5]
[334531836,1723174286528,-500.0,0.00024498,5]
[334531837,1723174286539,-2174.51,0.00024498,5]
[334531838,1723174286549,-1755.36,0.00024498,5]
[334531839,1723174286559,-500.0,0.00024498,5]
[334531840,1723174286569,-994.49,0.00024498,5]
[334531841,1723174286580,-500.0,0.00024498,5]
[334531842,1723174286590,-485.70282557,0.00024498,5]
[334531843,1723174286600,-1499.89,0.00024498,5]
[334531844,1723174286610,-500.0,0.00024498,5]
[334531845,1723174286619,-500.0,0.00024498,5]
[334531846,1723174286629,-565.38,0.00024498,5]
[334531847,1723174286638,-1330.55,0.00024498,5]
[334531848,1723174286648,-500.0,0.00024498,5]
[334531849,1723174286658,-500.0,0.00024498,5]
[334531850,1723174286667,-564.46,0.00024498,5]
[334531851,1723174286677,-963.27,0.00024498,5]
[334531852,1723174286686,-500.0,0.00024498,5]
[334531853,1723174286695,-550.36,0.00024498,5]
[334531854,1723174286705,-1035.59,0.00024498,5]
[334531855,1723174286714,-500.0,0.00024498,5]
[334531856,1723174286724,-500.0,0.00024498,5]
[334531857,1723174286734,-606.69,0.00024498,5]
[334531858,1723174286746,-500.0,0.00024498,5]
[334531859,1723174286759,-833.33,0.00024498,5]
[334531860,1723174286769,-500.0,0.00024498,5]
[334531861,1723174286778,-500.0,0.00024498,5]
[334531862,1723174286788,-857.68,0.00024498,5]
[334531863,1723174286798,-510.71,0.00024498,5]
[334531864,1723174286807,-753.83,0.00024498,5]
[334531865,1723174286816,-1785.13,0.00024498,5]
[334531866,1723174286826,-787.48,0.00024498,5]
[334531867,1723174286835,-500.0,0.00024498,5]
[334531868,1723174286845,-521.30248523,0.00024498,5]
[334531869,1723174286855,-500.0,0.00024498,5]
[334531870,1723174286864,-500.0,0.00024498,5]
[334531871,1723174286873,-232.51432651,0.00024498,5]
[334531872,1723174286883,-508.9,0.00024498,5]
[334531873,1723174286892,-500.0,0.00024498,5]
[334531874,1723174286901,-500.0,0.00024498,5]
[334531875,1723174286911,-905.68,0.00024498,5]
[334531876,1723174286921,-535.68604227,0.00024498,5]
[334531877,1723174286931,-151.4,0.00024498,5]
[334531878,1723174286941,-585.42,0.00024498,5]
[334531879,1723174286951,-2100.11,0.00024498,5]
[334531880,1723174286961,-500.0,0.00024498,5]
[334531881,1723174286971,-578.07,0.00024498,5]
[334531882,1723174286980,-500.0,0.00024498,5]
[334531883,1723174286993,-500.0,0.00024498,5]
[334531884,1723174287002,-1393.39,0.00024498,5]
[334531885,1723174287013,-268.0197458,0.00024498,5]
[334531886,1723174287023,-1966.42,0.00024498,5]
[334531887,1723174287033,-500.0,0.00024498,5]
[334531888,1723174287043,-500.0,0.00024498,5]
[334531889,1723174287053,-500.0,0.00024498,5]
[334531890,1723174287063,-1267.68,0.00024498,5]
[334531891,1723174287073,-685.54,0.00024498,5]
[334531892,1723174287083,-1471.19,0.00024498,5]
[334531893,1723174287093,-761.21,0.00024498,5]
[334531894,1723174287103,-664.06,0.00024498,5]
[334531895,1723174287113,-435.6,0.00024498,5]
[334531896,1723174287123,-2367.69,0.00024498,5]
[334531897,1723174287134,-500.0,0.00024498,5]
[334531898,1723174287144,-1807.21,0.00024499,5]
[334531899,1723174287154,-1807.21,0.00024499,5]
[334531900,1723174287164,-1807.21,0.00024499,5]
[334531901,1723174287174,-1807.21,0.00024499,5]
[334531902,1723174287184,-1807.21,0.00024499,5]
[334531903,1723174287194,-1807.21,0.00024499,5]
[334531904,1723174287204,-1807.21,0.00024499,5]
[334531905,1723174287214,-1807.21,0.00024499,5]
[334531906,1723174287224,-1807.21,0.00024499,5]
[334531907,1723174287239,-1807.21,0.00024499,5]
[334531908,1723174287249,-1807.21,0.00024499,5]
[334531909,1723174287259,-1807.21,0.00024499,5]
[334531910,1723174287269,-1807.21,0.00024499,5]
[334531911,1723174287279,-1807.21,0.00024499,5]
[334531912,1723174287289,-1807.21,0.00024499,5]
[334531913,1723174287299,-1807.29090846,0.00024499,5]
[334531914,1723174287308,-500.0,0.00024499,5]
[334531915,1723174287318,-500.0,0.00024499,5]
[334531916,1723174287327,-500.0,0.00024499,5]
[334531917,1723174287337,-500.0,0.00024499,5]
[334531918,1723174287347,-500.0,0.00024499,5]
[334531919,1723174287356,-500.0,0.00024499,5]
[334531920,1723174287368,-500.0,0.00024499,5]
[334531921,1723174287378,-500.0,0.00024499,5]
[334531922,1723174287388,-500.0,0.00024499,5]
[334531923,1723174287398,-500.0,0.00024499,5]
[334531924,1723174287408,-500.0,0.00024499,5]
[334531925,1723174287419,-500.0,0.00024499,5]
[334531926,1723174287430,-500.0,0.00024499,5]
[334531927,1723174287439,-322.24189175,0.00024499,5]
[334531928,1723174287449,-860.19,0.00024499,5]
[334531929,1723174287459,-860.19,0.00024499,5]
[334531930,1723174287469,-860.19,0.00024499,5]
[334531931,1723174287479,-500.0,0.00024499,5]
[334531932,1723174287493,-500.0,0.00024499,5]
[334531933,1723174287503,-500.0,0.00024499,5]
[334531934,1723174287513,-500.0,0.00024499,5]
[334531935,1723174287523,-500.0,0.00024499,5]
[334531936,1723174287534,-500.0,0.00024499,5]
[334531937,1723174287545,-500.0,0.00024499,5]
[334531938,1723174287555,-383.50134236,0.00024499,5]
[334531939,1723174287566,-860.19,0.00024499,5]
[334531940,1723174287575,-860.19,0.00024499,5]
[334531941,1723174287585,-860.19,0.00024499,5]
[334531942,1723174287594,-860.19,0.00024499,5]
[334531943,1723174287604,-860.19,0.00024499,5]
[334531944,1723174287614,-860.19,0.00024499,5]
[334531945,1723174287624,-860.19,0.00024499,5]
[334531946,1723174287633,-860.19,0.00024499,5]
[334531947,1723174287642,-860.19,0.00024499,5]
[334531948,1723174287652,-860.19,0.00024499,5]
[334531949,1723174287662,-860.19,0.00024499,5]
[334531950,1723174287672,-860.19,0.00024499,5]
[334531951,1723174287681,-860.28751287,0.00024499,5]
[334531952,1723174287691,-734.23,0.00024499,5]
[334531953,1723174287700,-734.23,0.00024499,5]
[334531954,1723174287710,-734.23,0.00024499,5]
[334531955,1723174287720,-734.23,0.00024499,5]